Cogmind - Beta 17 @@@ ROGUE MODE // 2026.08.01 @ 18:56:50 Player: Suffixing Result: Smashed by cave-in Performance ------------- Evolutions (0) 0 Regions Visited (2) 400 Robots Destroyed (24) 120 Value Destroyed (828) 828 Prototype IDs (0) 0 Alien Tech Used (0) 0 Bonus (0) 0 TOTAL SCORE: 1348 Bonus ------- None Cogmind --------- Core Integrity 0/250 Matter 279/300 Energy 99/100 System Corruption 10% Temperature Cool (0) Movement Core (50) Location -10/Subcaves Parts ------- > --- POWER (1) -------- (None) > --- PROPULSION (2) --- (None) > --- UTILITY (2) ------ (None) > --- WEAPON (2) ------- (None) > --- INVENTORY (5) ---- Wheel Subdweller Monowheel Subdweller Monowheel Medium Laser Peak State ------------ > --- POWER ------------ Ion Engine > --- PROPULSION ------- Light Treads Spiked Treads > --- UTILITY ---------- Heat Sink Large Storage Unit > --- WEAPON ----------- Subdweller Beam Cannon Subdweller Beam Cannon > --- INVENTORY -------- Ion Engine Light Ion Engine Subdweller Power Source Subdweller Power Source Wheel Subdweller Monowheel Subdweller Monowheel Subdweller Monowheel Hacking Suite Medium Laser Beam Rifle Beam Rifle Subdweller Machine Gun Mini Grenade Launcher [Rating: 12] Favorites ----------- Power Ion Engine Engine Ion Engine Propulsion Light Treads Treads Light Treads Leg Aluminum Leg Utility Large Storage Unit Device Heat Sink Storage Large Storage Unit Weapon Subdweller Beam Cannon Energy Gun Beam Rifle Energy Cannon Subdweller Beam Cannon Build | -11 -10 -10 ------- Run | Yrd Mat Sub Slots Evolved . | . . . Power . | . . . Propulsion . | . . . Utility . | . . . Weapon . | . . . Parts Attached 12 | . 8 4 Power 2 | . 1 1 Engine 2 | . 1 1 Core . | . . . Reactor . | . . . Propulsion 3 | . 2 1 Treads 3 | . 2 1 Leg . | . . . Wheel . | . . . Hover . | . . . Flight . | . . . Utility 2 | . 2 . Device 1 | . 1 . Storage 1 | . 1 . Processor . | . . . Hackware . | . . . Protection . | . . . Artifact . | . . . Weapon 5 | . 3 2 Energy Gun 3 | . 3 . Energy Cannon 2 | . . 2 Ballistic Gun . | . . . Ballistic Cannon . | . . . Launcher . | . . . Special Weapon . | . . . Impact Weapon . | . . . Slashing Weapon . | . . . Piercing Weapon . | . . . Special Melee Weapon . | . . . Unidentified Prototypes . | . . . Parts Lost 9 | . 1 8 Power 3 | . 1 2 Propulsion 3 | . . 3 Utility 1 | . . 1 Weapon 2 | . . 2 Highest Loss Streak 3 | . 1 3 To Critical Strikes . | . . . Average Backups 11 | 6 7 14 Power 2 | 1 1 2 Propulsion 2 | 4 1 3 Utility 1 | . 1 1 Weapon 5 | 1 3 6 Tool/Special . | . . . Unused Backups 21 | . 4 17 Power 3 | . . 3 Propulsion 5 | . 2 3 Utility 4 | . 1 3 Weapon 9 | . 1 8 Tool/Special . | . . . Average Slot Usage (%) 92 | . 94 90 Engine 13 | . 13 12 Treads 26 | . 27 24 Device 10 | . 9 12 Storage 13 | . 14 13 Energy Gun 15 | . 28 5 Energy Cannon 11 | . . 20 Peak Build Rating 12 | 6 10 12 Average Rating 9 | 6 8 10 On Entrance 7 | 6 6 10 Avg Prop Armor Cover (%) . | . . . Naked Turns 14 | . . 14 Heaviest Build 42 | 14 32 42 Greatest Support 40 | 20 40 40 Greatest Overweight (x) 9 | . . 9 Average Overweight (x) . | . . 1 Largest Inventory Capacity 15 | 8 15 15 Average Capacity 13 | 8 12 14 Most Carried 15 | 6 13 15 Average Carried 11 | 6 7 14 Final Capacity 15 | 8 15 5 Final Carried 12 | 6 12 4 Class Distribution -------------------- 100% | Mutant Dominant Class ---------------- Mutant | -10/Materials Mutant | -10/Subcaves Resources | -11 -10 -10 ----------- Run | Yrd Mat Sub Matter Collected 453 | 200 143 110 Remotely . | . . . Salvage Created 1062 | . 713 349 Parts 41 | . 25 16 Haulers Intercepted 2 | . 2 . Recyclers Shooed . | . . . Parts Field Recycled . | . . . Retrieved Matter . | . . . Parts Self-Destructed 6 | . . 6 Prevented . | . . . Parts Restored . | . . . Kills | -11 -10 -10 ------- Run | Yrd Mat Sub Combat Hostiles Destroyed 21 | . 14 7 Guns 15 | . 12 3 Cannons 4 | . . 4 Classes Destroyed 4 | . 3 1 Hauler 2 | . 2 . Operator 1 | . 1 . Grunt 14 | . 14 . Subdweller 7 | . . 7 Best Kill Streak 3 | . 3 2 Combat Bots Only 2 | . 2 2 Max Kills in Single Turn 1 | . 1 1 Gunslinging . | . . . Exploded . | . . . Melee . | . . . Uniques/NPCs Destroyed . | . . . Combat | -11 -10 -10 -------- Run | Yrd Mat Sub Hostile Shots Fired 82 | . 57 25 Missed 28 | . 21 7 Hits 54 | . 36 18 Projectile 54 | . 36 18 Critical Strikes 3 | . 2 1 Damage Taken 1441 | . 458 983 Core 273 | . 86 187 Absorbed by Shields . | . . . Core Remaining (%) 100 | 100 . . Volleys Fired 114 | . 69 45 Largest 2 | . 2 2 Hottest 160 | . 112 160 Shots Fired 218 | . 137 81 Gun 167 | . 137 30 Cannon 51 | . . 51 Launcher . | . . . Special . | . . . Kinetic . | . . . Thermal 188 | . 107 81 Explosive . | . . . Electromagnetic 30 | . 30 . Robot Hit Streak 10 | . 7 10 Robot Miss Streak 3 | . 3 3 Penetration Max . | . . . Secondary Targets 1 | . 1 . Max Gunslinging Chain 1 | . 1 . Shots Hit Robots 108 | . 77 31 Core Hits 38 | . 29 9 Critical Kills . | . . . Critical Parts Destroyed . | . . . Critical Strikes 9 | . 8 1 Burn 9 | . 8 1 Melee Attacks . | . . . Impact . | . . . Slashing . | . . . Piercing . | . . . Sneak Attacks . | . . . Combat Hostiles . | . . . Follow-up Attacks . | . . . Damage Inflicted 1809 | . 1167 642 Guns 1367 | . 1152 215 Cannons 427 | . . 427 Explosions . | . . . Melee . | . . . Ramming 15 | . 15 . Kinetic . | . . . Thermal 1716 | . 1074 642 Explosive . | . . . Electromagnetic 78 | . 78 . Impact . | . . . Slashing . | . . . Piercing . | . . . Highest Corruption 10 | . 4 10 Average Corruption 4 | . 3 4 Corruption Purged . | . . . Corruption Blocked . | . . . Effects 96 | . 44 52 Message Errors 22 | . 12 10 Matter Fused 22 | . 7 15 Heat Flow Errors 8 | . 4 4 Energy Discharges 14 | . 11 3 Parts Rejected 1 | . 1 . Data Loss (minor) 9 | . 3 6 Data Loss (major) 7 | . 3 4 Misfires 7 | . 1 6 Alerts 1 | . . 1 Weapon Failures 5 | . 2 3 Overload Shots . | . . . Overflow Damage . | . . . Projectiles . | . . . Explosions . | . . . Melee . | . . . Knockbacks . | . . . Impact . | . . . Kinetic . | . . . Secondary . | . . . Self-Inflicted Damage . | . . . Shots . | . . . Rammed 2 | . 2 . Targets Rammed 2 | . 2 . Kicked . | . . . Crushed . | . . . Highest Temperature 250 | . 250 237 Average Temperature 65 | . 71 39 Received Heat Transfer 408 | . 300 108 Siege Activations . | . . . Martial Activations . | . . . Shielding Activations . | . . . Robots Disrupted . | . . . Combat Hostiles . | . . . Robots Corrupted . | . . . Combat Hostiles . | . . . Parts Fried 1 | . 1 . Impact Corruptions . | . . . Robots Melted 2 | . 2 . Combat Hostiles 2 | . 2 . Parts Melted 11 | . 6 5 Heat Transferred 4514 | . 3330 1184 Parts Sabotaged . | . . . Parts Stolen . | . . . Parts Stripped . | . . . Power Chain Reactions . | . . . Alert | -11 -10 -10 ------- Run | Yrd Mat Sub Maximum Alert Level . | . . . Low Security (%) 100 | 100 100 . Level 1 . | . . . Level 2 . | . . . Level 3 . | . . . Level 4 . | . . . Level 5 . | . . . High Security . | . . . Max Security . | . . . Peak Influence 124 | . 124 . Initial . | . . . Average 45 | . 45 . Influence Increases 394 | . 394 . Destroy 0b10 Robot/C 280 | . 280 . Destroy 0b10 Robot/NC 15 | . 15 . Destroy Leader 54 | . 54 . Successful Hack 12 | . 12 . Destroy Structure 3 | . 3 . Lose Combat Pursuer 30 | . 30 . Influence Decreases 394 | . 342 52 Entered New Map 26 | . . 26 Time Decay 358 | . 332 26 Lost Part 10 | . 10 . Squads Dispatched 1 | . 1 . Investigation 1 | . 1 . Extermination . | . . . Reinforcement . | . . . Assault . | . . . Garrison . | . . . Intercept . | . . . Searches Triggered . | . . . Construction Impeded . | . . . Haulers Reinforced . | . . . Active Scanning Responses . | . . . Cargo Convoy Interrupts . | . . . Stealth | -11 -10 -10 --------- Run | Yrd Mat Sub Distress Signals 4 | . 4 . Communications Jammed . | . . . Distress Signals . | . . . Times Spotted 37 | . 30 7 Peak Tracking Total 4 | . 4 2 Tactical Retreats 2 | . 2 . Traps | -11 -10 -10 ------- Run | Yrd Mat Sub Traps Triggered 13 | . 4 9 Indirectly . | . . . Trap Hack Attempts . | . . . Triggered . | . . . Disarmed . | . . . Reprogrammed . | . . . Reused . | . . . Traps Extracted . | . . . Installed . | . . . Triggered . | . . . Machines | -11 -10 -10 ---------- Run | Yrd Mat Sub Machines Disabled 1 | . 1 . Max in Single Turn 1 | . 1 . Machines Repaired . | . . . Machines Dismantled . | . . . Machines Sabotaged . | . . . Overloaded Fab Kills . | . . . Hacking | -11 -10 -10 --------- Run | Yrd Mat Sub Machines Accessed 5 | . 5 . Terminals 4 | . 4 . Fabricators . | . . . Repair Stations . | . . . Recycling Units 1 | . 1 . Scanalyzers . | . . . Garrison Access . | . . . Total Hacks 12 | . 12 . Successful 4 | . 4 . Failed 8 | . 8 . Catastrophic 4 | . 4 . Database Lockouts . | . . . Manual 10 | . 10 . Terminals 10 | . 10 . Fabricators . | . . . Repair Stations . | . . . Recycling Units 2 | . 2 . Scanalyzers . | . . . Garrison Access . | . . . Terminal Hacks . | . . . Fabricator Hacks . | . . . Repair Station Hacks . | . . . Recycling Unit Hacks 1 | . 1 . Retrieve Components 1 | . 1 . Scanalyzer . | . . . Garrison Access Hacks . | . . . Unauthorized Hacks 3 | . 3 . Terminals 3 | . 3 . Assimilate 1 | . 1 . Operators 2 | . 2 . Fabricators . | . . . Repair Stations . | . . . Recycling Units . | . . . Scanalyzers . | . . . Garrison Access . | . . . Data Cores Recovered 1 | . 1 . Used . | . . . Hacking Detections 4 | . 4 . Full Trace Events 1 | . 1 . Feedback Events . | . . . Feedback Blocked . | . . . Robot Schematics Acquired . | . . . Robots Built . | . . . Authchips . | . . . Time . | . . . Total Robot Build Rating . | . . . Part Schematics Acquired . | . . . Parts Built . | . . . Authchips . | . . . Time . | . . . Total Part Build Rating . | . . . Part Studies Acquired . | . . . Parts Repaired . | . . . Time . | . . . Parts Recycled . | . . . Recycled Matter . | . . . Retrieved Matter . | . . . Retrieved Components 10 | . 10 . Parts Scanalyzed . | . . . Part Schematics Acquired . | . . . Parts Damaged . | . . . Bothacking | -11 -10 -10 ------------ Run | Yrd Mat Sub Used RIF Installer . | . . . Robots Hacked . | . . . Non-combat . | . . . Combat . | . . . Robot Hacks Applied . | . . . Relay Couplers Released . | . . . Fabnet Peak Effective % . | . . . Robots Rewired . | . . . Allies Hacked . | . . . Hacks Repelled . | . . . Allies | -11 -10 -10 -------- Run | Yrd Mat Sub Total Allies . | . . . Largest Group . | . . . Highest-Rated Group . | . . . Highest-Rated Ally . | . . . Total Orders . | . . . Ally Attacks . | . . . Total Damage . | . . . Kills . | . . . Allies Corrupted . | . . . Allies Melted . | . . . Intel | -11 -10 -10 ------- Run | Yrd Mat Sub Active Infowar (turns) . | . . . Robot Analysis Total . | . . . Derelict Logs Recovered 3 | . . 3 Drone Launches . | . . . Drone Recoveries . | . . . Exploration | -11 -10 -10 ------------- Run | Yrd Mat Sub Turns Passed 3942 | 3 1722 2217 Spaces Moved 1743 | 3 907 833 Core 79 | . . 79 Treads 1661 | . 907 754 Legs 3 | 3 . . Wheels . | . . . Hover . | . . . Flight . | . . . Fastest Speed 50 | 120 160 50 Average Speed 189 | 120 160 222 Slowest Speed 500 | 120 160 500 Overloaded Moves . | . . . Propulsion Burnouts . | . . . Robots Hopped . | . . . Potential Cave-ins 33 | . . 33 Cave-ins Triggered 4 | . . 4 Exploration Rate (%) 53 | 2 97 61 Regions Visited 2 Branch Regions 1 Pre-discovered Areas . | . . . Known Exits Taken . | . . . Unknown Exits Taken 2 | 1 1 . Scrap Searched 12 | . . 12 Spaces Dug . | . . . Terrain Destroyed 14 | . . 14 Melee . | . . . Projectile 14 | . . 14 AOE . | . . . Terrain Rammed . | . . . Walls Destroyed . | . . . Machines Disabled . | . . . Actions | -11 -10 -10 --------- Run | Yrd Mat Sub Total 2154 | 2 1040 1112 Wait 238 | . 31 207 Move 1738 | 2 906 830 Hop . | . . . Pick Up 29 | . 16 13 Fast Attach . | . . . Attach 6 | . 4 2 Detach . | . . . Swap 7 | . 5 2 Drop 18 | . 7 11 Fire 114 | . 69 45 Melee . | . . . Ram . | . . . Kick . | . . . Crush 2 | . 2 . Escape Stasis 2 | . . 2 Rewire . | . . . Trap . | . . . Miscellaneous . | . . . Route ------- -11/Scrapyard -10/Materials (discovered 6 exits: [*Mat x3] / [*Min x2] / [*Sub]) -10/Subcaves History --------- Turn | Location | Event 1 | -11/Scrapyard | Discovered new exit (range 3) 4 | -11/Scrapyard | Entered Materials 61 | -10/Materials | Discovered new exit (range 6) 113 | -10/Materials | Discovered new exit (range 15) 302 | -10/Materials | Build established: Mutant 451 | -10/Materials | Discovered new exit (range 6) 734 | -10/Materials | Discovered new exit (range 10) 967 | -10/Materials | Discovered new exit (range 3) 1715 | -10/Materials | Discovered new exit (range 7) 1726 | -10/Materials | Entered Subcaves 1778 | -10/Subcaves | Core integrity fell below 50% 1844 | -10/Subcaves | Shifting Twisted Machinery released Riot Gun 1873 | -10/Subcaves | Learned 4 Materials zone layouts 1905 | -10/Subcaves | Disturbed a concealed Subdweller 2085 | -10/Subcaves | Shifting Twisted Machinery released Sub. Monowheel 2092 | -10/Subcaves | Shifting Twisted Machinery released Sub. Beam Cannon 2873 | -10/Subcaves | Shifting Twisted Machinery released Piercing Trap 2890 | -10/Subcaves | Learned 4 Materials zone layouts 3289 | -10/Subcaves | Disturbed a concealed Subdweller 3332 | -10/Subcaves | Core integrity fell below 20% 3370 | -10/Subcaves | Learned 2 Materials zone layouts 3725 | -10/Subcaves | Lost 3 parts (1p1n1w) 3889 | -10/Subcaves | Crushed by falling debris 3921 | -10/Subcaves | Crushed by falling debris 3929 | -10/Subcaves | Crushed by falling debris 3930 | -10/Subcaves | System corruption reached 10% 3943 | -10/Subcaves | Crushed by falling debris 3943 | -10/Subcaves | Smashed by cave-in Last Messages --------------- 03846_ QOYON8LPUP,5K/U/9AMOIBRNJJ/AA3M>KMXT 03863_ Dropped Lrg. Storage Unit. 03865_ System corrupted: Sub. Beam Cannon failed to cycle. 03873_ IRQ|S4CMZUC T521R,,3VDA2=UZHN 03889_ The unstable cave ceiling collapses. 03889_ Crushed by falling debris. 03889_ Lrg. Storage Unit crushed. 03918_ System corrupted: Matter fused (-7). 03921_ The unstable cave ceiling collapses. 03921_ Crushed by falling debris. 03921_ Lgt. Ion Engine destroyed. 03921_ System corrupted by crushing effect (+3). 03929_ The unstable cave ceiling collapses. 03929_ Crushed by falling debris. 03929_ Sub. Beam Cannon destroyed. 03929_ System corrupted by crushing effect (+3). [Achievement: This Is My Hole] 03943_ The unstable cave ceiling collapses. 03943_ Crushed by falling debris. Map ----- +----------------------------------------------------+ | ????????????????????????????????????????????? | | ????????????????????????????????????????????? | | ????????????????????????????????????????????? | | ????????????????????????????????????????????? | | ????????????????????????????????????????????? | | ????????????????????????????????????????????? | | ????????????????????????????????????????????? | | ????????????????????????????????????????????? | | ????????????????????????????????????????????? | | ????????????????????????????????????????????? | | ????????????????????????????????????????????? | | ????????????????????????????????????????????? | | ???????????????????????##???????????????????? | | ???????????????????????# #######????????????? | | ???????????????????????# ; ;;;#????????????? | | ???????????????????????# "; ;#????????????? | | ???????????????????????? " "#????????????? | | ????????????????????????#" ;"#????????????? | | ????????????????????????#" " #????????????? | | ???##############???????# ;;" #????????????? | | ??##""" "" %[ [%##??????## ;####????????????? | | ??#"" "" * % !%#??????## #???????????????? | | ??#" &[ %[ #??????#; ###?????????????? | | ??# """ "[!%!!!%"#??????# ###?????????????? | | ??#" "" ""% %=" #??????#; ;##????????????? | | ??# [& ##"" ""####??????#@; []#????????????? | | ??#""" ########?????????#; *[##????????????? | | ??#"""! #"####??????????#;;[*##?????????????? | | #?##" &&! #??????????### !=#?????????????? | | #??#" %& ##???????????# *##?????????????? | | ?### ^!# "#???????????# ##?????????????? | | ?# ####"#" ######??????# #?????????????? | | ## ### " ## #????### #?????????????? | | ###### ##?????????????? | | ############ #?????????????? | | #### ###?## ##?????????????? | | # ## ###### ## #??????????????? | | ## ## ####### #??????????????? | | ?# ##???# ###??????????????? | | ?## ## ##?## ##????????????????? | | ??## ## ### ##????????????????? | | ##?# ### #????????????????? | | ## #?# #### ##????????????????? | | ## ##??# ##?????????????????? | | ####???# ##??????????????????? | | # #??????# ##??????????????????? | | # #????### ##?????????????????? | | # #????# ####??????????????? | | ## #?# #??????????????? | | ?## ### ## ## #??????????????? | +----------------------------------------------------+ Best States ------------- Heat Dissipation 35 Energy Generation 10 Energy Capacity 250 Matter Stores 300 Matter Capacity 300 Sight Range 16 Terrain Scan Density 10 Evasion (%) 50 Recoil Reduction 2 Item Schematics ----------------- None Robot Schematics ------------------ None Fabricated ------------ Nothing Repaired ---------- Nothing Studied --------- None Alien Tech Used ----------------- None Achievements -------------- This Is My Hole Challenges ------------ None Game ------ Seed HypercooledConstructShotgun Manual? 0 Play Time 00:16:24 Cumulative 70.6 hours Start 2026.08.01 @ 18:35:07 End 2026.08.01 @ 18:56:50 Sessions 1 Manual Loads 0 Difficulty Rogue Special Mode None Game No. 292 Rogue 247 Adventurer 45 Explorer 0 Win Type - Total 3 Types 3/0/0/0/0/0/0/0/0/0 Lore% 68 Gallery% 48 Achievement% 47 Wizard Run 0 Options --------- Layout 1 ASCII 0 Keyboard 0 Movement Numpad Keybinds 0 Fullscreen 1 Font 24/Smallcaps Map View 50x35 Zoom Use 0% Tactical HUD 1 Map Filters NONE Filters NONE Steam 1 RUN: cda7efa0-e4c5-44f0-8cc9-edeadb0ca51f